[Event "*** Titled Tuesday Blitz"]
[Site "Chess.com"]
[Date "2020.11.24"]
[Round "1"]
[White "Fusikk"]
[Black "Grineva_Marianna"]
[Result "1-0"]
[WhiteElo "2531"]
[BlackElo "2209"]
[TimeControl "180+1"]
[EndTime "10:21:33 PST"]
[Termination "Fusikk won by resignation"]

1. d4 {[%clk 0:02:55]} 1... f5 {[%clk 0:02:59.1]} 2. h3 {[%clk 0:02:52.5]} 2...
d6 {[%clk 0:02:58.1]} 3. c4 {[%clk 0:02:47.8]} 3... Nf6 {[%clk 0:02:56.8]} 4.
Nc3 {[%clk 0:02:42.9]} 4... g6 {[%clk 0:02:56.3]} 5. Nf3 {[%clk 0:02:38.9]} 5...
Bg7 {[%clk 0:02:55.6]} 6. Bg5 {[%clk 0:02:37.2]} 6... O-O {[%clk 0:02:55.1]} 7.
e3 {[%clk 0:02:35.7]} 7... h6 {[%clk 0:02:48.7]} 8. Bxf6 {[%clk 0:02:35.2]} 8...
Bxf6 {[%clk 0:02:46.9]} 9. Bd3 {[%clk 0:02:35.4]} 9... Kg7 {[%clk 0:02:43.5]}
10. O-O {[%clk 0:02:34.6]} 10... c6 {[%clk 0:02:40.9]} 11. Qe2 {[%clk
0:02:30.6]} 11... e5 {[%clk 0:02:40.2]} 12. dxe5 {[%clk 0:02:28.9]} 12... dxe5
{[%clk 0:02:41.1]} 13. e4 {[%clk 0:02:28.4]} 13... f4 {[%clk 0:02:41.2]} 14.
Rfd1 {[%clk 0:02:26.2]} 14... Qe7 {[%clk 0:02:35.9]} 15. a3 {[%clk 0:02:22.2]}
15... Be6 {[%clk 0:02:31.6]} 16. b4 {[%clk 0:02:21]} 16... Nd7 {[%clk
0:02:30.5]} 17. c5 {[%clk 0:02:20.6]} 17... a5 {[%clk 0:02:23.9]} 18. Bc4 {[%clk
0:02:19.7]} 18... Rfd8 {[%clk 0:02:17.2]} 19. Rd6 {[%clk 0:02:08]} 19... Nf8
{[%clk 0:02:08.8]} 20. Rad1 {[%clk 0:02:04.9]} 20... axb4 {[%clk 0:02:05.5]} 21.
axb4 {[%clk 0:02:01.3]} 21... Bf7 {[%clk 0:01:52.6]} 22. Bxf7 {[%clk 0:01:48.7]}
22... Kxf7 {[%clk 0:01:47.3]} 23. Qc4+ {[%clk 0:01:48.1]} 23... Ne6 {[%clk
0:01:27.7]} 24. Na4 {[%clk 0:01:29.3]} 24... Rxd6 {[%clk 0:01:06.5]} 25. cxd6
{[%clk 0:01:27.8]} 25... Qd8 {[%clk 0:01:06.4]} 26. Nc5 {[%clk 0:01:26.4]} 26...
Qe8 {[%clk 0:01:04.1]} 27. d7 {[%clk 0:01:26.1]} 27... Qe7 {[%clk 0:01:03.6]}
28. d8=Q {[%clk 0:01:24.2]} 28... Rxd8 {[%clk 0:01:01.4]} 29. Rxd8 {[%clk
0:01:23.7]} 29... Qxd8 {[%clk 0:00:52.3]} 30. Qxe6+ {[%clk 0:01:22.3]} 30... Kg7
{[%clk 0:00:42.3]} 31. Qd7+ {[%clk 0:01:21.7]} 31... Qxd7 {[%clk 0:00:37.8]} 32.
Nxd7 {[%clk 0:01:22.6]} 32... Be7 {[%clk 0:00:38.2]} 33. Nc5 {[%clk 0:01:18.5]}
33... b6 {[%clk 0:00:37.9]} 34. Nd3 {[%clk 0:01:18]} 34... c5 {[%clk 0:00:34.7]}
35. bxc5 {[%clk 0:01:17.6]} 35... bxc5 {[%clk 0:00:35.6]} 36. Nfxe5 {[%clk
0:01:17.8]} 36... Kf6 {[%clk 0:00:34.5]} 37. Nc4 {[%clk 0:01:17.9]} 37... g5
{[%clk 0:00:34]} 38. f3 {[%clk 0:01:17.7]} 38... Ke6 {[%clk 0:00:32.8]} 39. Kf1
{[%clk 0:01:18.1]} 39... Kd7 {[%clk 0:00:32.6]} 40. Ke2 {[%clk 0:01:18.7]} 40...
Kc6 {[%clk 0:00:33]} 41. Nde5+ {[%clk 0:01:16]} 41... Kb5 {[%clk 0:00:32.2]} 42.
Kd3 {[%clk 0:01:16.5]} 42... Bf6 {[%clk 0:00:27.5]} 43. Nf7 {[%clk 0:01:15.4]}
43... Bg7 {[%clk 0:00:24]} 44. e5 {[%clk 0:01:14]} 44... Kb4 {[%clk 0:00:19.9]}
45. e6 {[%clk 0:01:13.1]} 45... Bf8 {[%clk 0:00:20.1]} 46. Nxh6 {[%clk
0:01:12.5]} 1-0

[Event "*** Titled Tuesday Blitz"]
[Site "Chess.com"]
[Date "2020.11.24"]
[Round "1"]
[White "PowerThinking2650"]
[Black "PaulfromSPb"]
[Result "0-1"]
[WhiteElo "2347"]
[BlackElo "2666"]
[TimeControl "180+1"]
[EndTime "10:21:34 PST"]
[Termination "PaulfromSPb won by resignation"]

1. e4 {[%clk 0:02:59.7]} 1... c5 {[%clk 0:02:59.3]} 2. Nf3 {[%clk 0:02:57.5]}
2... d6 {[%clk 0:03:00.2]} 3. d4 {[%clk 0:02:54.1]} 3... cxd4 {[%clk 0:03:01.1]}
4. Nxd4 {[%clk 0:02:53.5]} 4... Nf6 {[%clk 0:03:00.3]} 5. Nc3 {[%clk 0:02:52.1]}
5... a6 {[%clk 0:03:00.6]} 6. Bc4 {[%clk 0:02:51.9]} 6... e6 {[%clk 0:02:57.5]}
7. O-O {[%clk 0:02:50.9]} 7... Be7 {[%clk 0:02:56.4]} 8. Bb3 {[%clk 0:02:47.1]}
8... O-O {[%clk 0:02:55.7]} 9. f4 {[%clk 0:02:47.1]} 9... Nbd7 {[%clk 0:02:55]}
10. f5 {[%clk 0:02:41.9]} 10... e5 {[%clk 0:02:52.5]} 11. Nde2 {[%clk
0:02:41.9]} 11... Nc5 {[%clk 0:02:50.8]} 12. Ng3 {[%clk 0:02:40.6]} 12... h6
{[%clk 0:02:47.8]} 13. Be3 {[%clk 0:02:35.1]} 13... Qc7 {[%clk 0:02:43.4]} 14.
Nd5 {[%clk 0:02:28.6]} 14... Nxd5 {[%clk 0:02:41.7]} 15. Bxd5 {[%clk 0:02:29.2]}
15... Bf6 {[%clk 0:02:33.3]} 16. Nh5 {[%clk 0:02:25.8]} 16... Qe7 {[%clk
0:02:32.3]} 17. Qg4 {[%clk 0:02:12.9]} 17... Kh7 {[%clk 0:02:31.2]} 18. Rf3
{[%clk 0:02:04.4]} 18... Bg5 {[%clk 0:02:26.1]} 19. Bf2 {[%clk 0:01:31.3]} 19...
g6 {[%clk 0:02:21]} 20. Ng3 {[%clk 0:01:25.2]} 20... Bf4 {[%clk 0:02:13.9]} 21.
Rf1 {[%clk 0:01:17.1]} 21... Rg8 {[%clk 0:02:07.8]} 22. Qh3 {[%clk 0:00:52.7]}
22... Rg7 {[%clk 0:01:55]} 23. Be3 {[%clk 0:00:27.1]} 23... Bxe3+ {[%clk
0:01:54.4]} 24. Rxe3 {[%clk 0:00:27.6]} 24... Qg5 {[%clk 0:01:54.7]} 25. Ref3
{[%clk 0:00:27.5]} 25... a5 {[%clk 0:01:41.8]} 26. Bxf7 {[%clk 0:00:26.3]} 26...
gxf5 {[%clk 0:01:37.8]} 27. Rxf5 {[%clk 0:00:25]} 27... Bxf5 {[%clk 0:01:35.2]}
28. Rxf5 {[%clk 0:00:24.6]} 28... Qe3+ {[%clk 0:01:30.6]} 29. Kh1 {[%clk
0:00:20.8]} 29... Nxe4 {[%clk 0:01:27.4]} 30. Nf1 {[%clk 0:00:11.2]} 30... Nf2+
{[%clk 0:01:22.9]} 31. Rxf2 {[%clk 0:00:10.8]} 31... Qxf2 {[%clk 0:01:22]} 32.
Qd3+ {[%clk 0:00:10]} 32... e4 {[%clk 0:01:18.6]} 33. Qxe4+ {[%clk 0:00:09.5]}
33... Kh8 {[%clk 0:01:18.8]} 34. Bc4 {[%clk 0:00:06.9]} 34... Rf8 {[%clk
0:01:17]} 35. h3 {[%clk 0:00:06]} 35... Qf4 {[%clk 0:01:14.6]} 36. Qe2 {[%clk
0:00:05.1]} 36... Qe5 {[%clk 0:01:07.7]} 37. Qh5 {[%clk 0:00:02.1]} 37... Qxh5
{[%clk 0:01:05.8]} 0-1

[Event "*** Titled Tuesday Blitz"]
[Site "Chess.com"]
[Date "2020.11.24"]
[Round "1"]
[White "Itk04"]
[Black "mikheeva86"]
[Result "1-0"]
[WhiteElo "2477"]
[BlackElo "1971"]
[TimeControl "180+1"]
[EndTime "10:21:35 PST"]
[Termination "Itk04 won on time"]

1. c4 {[%clk 0:02:56.9]} 1... Nf6 {[%clk 0:02:58.6]} 2. e3 {[%clk 0:02:56.9]}
2... e6 {[%clk 0:02:58.4]} 3. Nf3 {[%clk 0:02:57.4]} 3... d5 {[%clk 0:02:58.3]}
4. Nc3 {[%clk 0:02:57.7]} 4... c5 {[%clk 0:02:56.7]} 5. b3 {[%clk 0:02:58.2]}
5... Nc6 {[%clk 0:02:56.4]} 6. Bb2 {[%clk 0:02:56.2]} 6... d4 {[%clk 0:02:46.7]}
7. exd4 {[%clk 0:02:51.1]} 7... cxd4 {[%clk 0:02:29.5]} 8. Nb1 {[%clk
0:02:42.6]} 8... Bc5 {[%clk 0:02:24.4]} 9. d3 {[%clk 0:02:41.5]} 9... O-O {[%clk
0:02:21.4]} 10. a3 {[%clk 0:02:41.6]} 10... a5 {[%clk 0:02:19.5]} 11. g3 {[%clk
0:02:37]} 11... e5 {[%clk 0:02:18]} 12. Bg2 {[%clk 0:02:37.5]} 12... e4 {[%clk
0:02:05.3]} 13. dxe4 {[%clk 0:02:36.9]} 13... Nxe4 {[%clk 0:02:03.4]} 14. O-O
{[%clk 0:02:29.5]} 14... Re8 {[%clk 0:01:51]} 15. Nbd2 {[%clk 0:02:11.9]} 15...
Nc3 {[%clk 0:01:05.7]} 16. Qc2 {[%clk 0:01:51.2]} 16... Ne2+ {[%clk 0:01:03.9]}
17. Kh1 {[%clk 0:01:50.7]} 17... d3 {[%clk 0:01:03.7]} 18. Qb1 {[%clk
0:01:47.7]} 18... Bg4 {[%clk 0:00:45.5]} 19. Ne1 {[%clk 0:01:20.9]} 19... Qd6
{[%clk 0:00:11.6]} 20. Qxd3 {[%clk 0:01:06.2]} 20... Rad8 {[%clk 0:00:09]} 21.
Qxd6 {[%clk 0:01:04.2]} 21... Rxd6 {[%clk 0:00:08.3]} 22. Ne4 {[%clk 0:01:04.4]}
22... Rxe4 {[%clk 0:00:04.8]} 23. Bxe4 {[%clk 0:01:05.3]} 23... Ned4 {[%clk
0:00:03.1]} 24. Nd3 {[%clk 0:01:01.1]} 24... Nf3 {[%clk 0:00:01.4]} 25. Nxc5
{[%clk 0:00:56.4]} 25... f5 {[%clk 0:00:01.6]} 26. Bd5+ {[%clk 0:00:53.9]} 26...
Kf8 {[%clk 0:00:01.8]} 27. Ne6+ {[%clk 0:00:46.3]} 27... Ke7 {[%clk 0:00:01.1]}
28. Kg2 {[%clk 0:00:40.9]} 1-0

[Event "*** Titled Tuesday Blitz"]
[Site "Chess.com"]
[Date "2020.11.24"]
[Round "1"]
[White "Lestofante90"]
[Black "konradrutkowski"]
[Result "1-0"]
[WhiteElo "2807"]
[BlackElo "2413"]
[TimeControl "180+1"]
[EndTime "10:21:36 PST"]
[Termination "Lestofante90 won by resignation"]

1. e4 {[%clk 0:03:00.9]} 1... e5 {[%clk 0:02:59.1]} 2. Nf3 {[%clk 0:03:00.7]}
2... Nc6 {[%clk 0:02:58.7]} 3. Bb5 {[%clk 0:02:58.5]} 3... a6 {[%clk 0:02:54.9]}
4. Ba4 {[%clk 0:02:58.1]} 4... d6 {[%clk 0:02:50.1]} 5. O-O {[%clk 0:02:54.8]}
5... Bd7 {[%clk 0:02:41.2]} 6. c3 {[%clk 0:02:54]} 6... g6 {[%clk 0:02:40.3]} 7.
d4 {[%clk 0:02:53.1]} 7... Bg7 {[%clk 0:02:39.5]} 8. Re1 {[%clk 0:02:39.8]} 8...
b5 {[%clk 0:02:30]} 9. Bb3 {[%clk 0:02:38.1]} 9... Nf6 {[%clk 0:02:30.4]} 10.
Bg5 {[%clk 0:02:37.3]} 10... O-O {[%clk 0:02:22.9]} 11. Nbd2 {[%clk 0:02:36.3]}
11... h6 {[%clk 0:02:19]} 12. Bh4 {[%clk 0:02:36.2]} 12... Re8 {[%clk
0:01:56.2]} 13. a3 {[%clk 0:02:23.3]} 13... Qc8 {[%clk 0:01:44.8]} 14. Rc1
{[%clk 0:02:08.1]} 14... Nh5 {[%clk 0:01:33.9]} 15. h3 {[%clk 0:02:01.6]} 15...
exd4 {[%clk 0:01:00.1]} 16. cxd4 {[%clk 0:01:51.2]} 16... Nxd4 {[%clk 0:01:00]}
17. Nxd4 {[%clk 0:01:49.7]} 17... Bxd4 {[%clk 0:01:00.9]} 18. Nf3 {[%clk
0:01:41.8]} 18... Bg7 {[%clk 0:01:00.3]} 19. Qd2 {[%clk 0:01:36.7]} 19... Be6
{[%clk 0:00:31.6]} 20. Bd1 {[%clk 0:01:34.3]} 20... g5 {[%clk 0:00:29.1]} 21.
Bxg5 {[%clk 0:01:28.2]} 21... hxg5 {[%clk 0:00:27.8]} 22. Qxg5 {[%clk
0:01:28.5]} 22... Nf6 {[%clk 0:00:24.4]} 23. Nd4 {[%clk 0:01:28.9]} 23... Qd8
{[%clk 0:00:19.2]} 24. Nc6 {[%clk 0:01:27.3]} 24... Qd7 {[%clk 0:00:18.4]} 25.
e5 {[%clk 0:01:27.3]} 25... dxe5 {[%clk 0:00:17.8]} 26. Nxe5 {[%clk 0:01:27.9]}
26... Qd4 {[%clk 0:00:17.6]} 27. Bf3 {[%clk 0:01:26.6]} 27... Rad8 {[%clk
0:00:15.9]} 28. Nc6 {[%clk 0:01:26.7]} 28... Qxb2 {[%clk 0:00:15.3]} 29. Nxd8
{[%clk 0:01:26.2]} 29... Rxd8 {[%clk 0:00:16.2]} 30. Rxc7 {[%clk 0:01:23]} 30...
Qxa3 {[%clk 0:00:14.7]} 31. Rxe6 {[%clk 0:01:18.6]} 31... Qa1+ {[%clk
0:00:12.5]} 32. Rc1 {[%clk 0:01:08.3]} 32... Qb2 {[%clk 0:00:09.4]} 33. Re2
{[%clk 0:01:05.7]} 33... Qa3 {[%clk 0:00:07]} 34. Rec2 {[%clk 0:01:01.3]} 34...
Nh7 {[%clk 0:00:05.2]} 35. Qxd8+ {[%clk 0:01:01.1]} 1-0

[Event "*** Titled Tuesday Blitz"]
[Site "Chess.com"]
[Date "2020.11.24"]
[Round "1"]
[White "frederiksvane"]
[Black "AsaHoffmann"]
[Result "1-0"]
[WhiteElo "2725"]
[BlackElo "2380"]
[TimeControl "180+1"]
[EndTime "10:21:36 PST"]
[Termination "frederiksvane won by resignation"]

1. e4 {[%clk 0:03:00.5]} 1... d6 {[%clk 0:02:58.6]} 2. d4 {[%clk 0:02:58.8]}
2... c6 {[%clk 0:02:58.1]} 3. Nf3 {[%clk 0:02:58.8]} 3... Bg4 {[%clk 0:02:56.9]}
4. Nbd2 {[%clk 0:02:58.5]} 4... Nf6 {[%clk 0:02:54.7]} 5. Bd3 {[%clk 0:02:57.8]}
5... e6 {[%clk 0:02:53.6]} 6. h3 {[%clk 0:02:57.5]} 6... Bh5 {[%clk 0:02:53.1]}
7. O-O {[%clk 0:02:57.8]} 7... d5 {[%clk 0:02:52.9]} 8. c3 {[%clk 0:02:57.3]}
8... Be7 {[%clk 0:02:52.3]} 9. Qe2 {[%clk 0:02:56.2]} 9... O-O {[%clk
0:02:51.7]} 10. Re1 {[%clk 0:02:52.7]} 10... Nbd7 {[%clk 0:02:49.2]} 11. exd5
{[%clk 0:02:45.5]} 11... cxd5 {[%clk 0:02:47.1]} 12. Qf1 {[%clk 0:02:41.5]}
12... a6 {[%clk 0:02:38.4]} 13. Ne5 {[%clk 0:02:29.4]} 13... Nxe5 {[%clk
0:02:37.1]} 14. dxe5 {[%clk 0:02:18.3]} 14... Nd7 {[%clk 0:02:36.3]} 15. Nb3
{[%clk 0:02:18.7]} 15... Nc5 {[%clk 0:02:31.4]} 16. Be3 {[%clk 0:01:59.7]} 16...
Nxd3 {[%clk 0:02:29.7]} 17. Qxd3 {[%clk 0:02:00.6]} 17... Bg6 {[%clk 0:02:28.7]}
18. Qd2 {[%clk 0:01:39.5]} 18... Rc8 {[%clk 0:02:27.4]} 19. Nd4 {[%clk 0:01:38]}
19... Qc7 {[%clk 0:02:19.7]} 20. Bf4 {[%clk 0:01:11.5]} 20... Bc5 {[%clk
0:02:10.7]} 21. Re2 {[%clk 0:00:59.4]} 21... Bxd4 {[%clk 0:02:09.4]} 22. Qxd4
{[%clk 0:00:57.9]} 22... Qc4 {[%clk 0:02:08.9]} 23. Rd2 {[%clk 0:00:54.1]} 23...
b5 {[%clk 0:02:04.9]} 24. Be3 {[%clk 0:00:49.8]} 24... Qxd4 {[%clk 0:02:04.2]}
25. Bxd4 {[%clk 0:00:50.1]} 25... Rc6 {[%clk 0:02:01.4]} 26. f3 {[%clk
0:00:44.7]} 26... Rb8 {[%clk 0:01:57.1]} 27. b4 {[%clk 0:00:40.4]} 27... Rbc8
{[%clk 0:01:48.7]} 28. a4 {[%clk 0:00:36.6]} 28... h6 {[%clk 0:01:42.9]} 29. Kf2
{[%clk 0:00:35.1]} 29... Rc4 {[%clk 0:01:37.5]} 30. axb5 {[%clk 0:00:20.9]}
30... axb5 {[%clk 0:01:37.1]} 31. Ra5 {[%clk 0:00:20.4]} 31... Rb8 {[%clk
0:01:36.6]} 32. g4 {[%clk 0:00:20.4]} 32... Rb7 {[%clk 0:01:08]} 33. Rda2 {[%clk
0:00:20.6]} 33... Kh7 {[%clk 0:01:04]} 34. R2a3 {[%clk 0:00:21.1]} 34... Rb8
{[%clk 0:01:01.6]} 35. Ke3 {[%clk 0:00:21.5]} 35... Rb7 {[%clk 0:01:01.2]} 36.
Ra7 {[%clk 0:00:20.3]} 36... Rcc7 {[%clk 0:00:59.1]} 37. Ra8 {[%clk 0:00:17.7]}
37... Bc2 {[%clk 0:00:53.8]} 38. Rd8 {[%clk 0:00:17.6]} 38... Ra7 {[%clk
0:00:50.4]} 39. Rxa7 {[%clk 0:00:17.3]} 39... Rxa7 {[%clk 0:00:50]} 40. Bxa7
{[%clk 0:00:18.2]} 1-0

[Event "*** Titled Tuesday Blitz"]
[Site "Chess.com"]
[Date "2020.11.24"]
[Round "1"]
[White "Escanor89"]
[Black "Zarinur"]
[Result "0-1"]
[WhiteElo "2512"]
[BlackElo "2220"]
[TimeControl "180+1"]
[EndTime "10:21:37 PST"]
[Termination "Zarinur won by resignation"]

1. Nf3 {[%clk 0:03:00.9]} 1... Nf6 {[%clk 0:02:59.5]} 2. c4 {[%clk 0:03:00.8]}
2... e6 {[%clk 0:02:58.9]} 3. Nc3 {[%clk 0:03:00.7]} 3... d5 {[%clk 0:02:59.1]}
4. d4 {[%clk 0:03:00.8]} 4... a6 {[%clk 0:02:57.6]} 5. cxd5 {[%clk 0:02:58]}
5... exd5 {[%clk 0:02:57.5]} 6. Bg5 {[%clk 0:02:56.7]} 6... Be6 {[%clk
0:02:57.4]} 7. Qb3 {[%clk 0:02:54.1]} 7... Ra7 {[%clk 0:02:55.7]} 8. e3 {[%clk
0:02:52.8]} 8... Be7 {[%clk 0:02:51.1]} 9. Bd3 {[%clk 0:02:51.4]} 9... Nbd7
{[%clk 0:02:50.9]} 10. O-O {[%clk 0:02:50.7]} 10... O-O {[%clk 0:02:49.9]} 11.
Rac1 {[%clk 0:02:47.3]} 11... h6 {[%clk 0:02:49.2]} 12. Bh4 {[%clk 0:02:46]}
12... Nb6 {[%clk 0:02:40.9]} 13. Ne5 {[%clk 0:02:24.2]} 13... Ra8 {[%clk
0:02:36.7]} 14. Na4 {[%clk 0:02:20]} 14... Nxa4 {[%clk 0:02:34.8]} 15. Qxa4
{[%clk 0:02:20.6]} 15... c6 {[%clk 0:02:34.4]} 16. Qb3 {[%clk 0:02:18.1]} 16...
Qc8 {[%clk 0:02:32.3]} 17. Bb1 {[%clk 0:02:10.7]} 17... Re8 {[%clk 0:02:27.2]}
18. Qd3 {[%clk 0:02:08]} 18... Ne4 {[%clk 0:02:09.9]} 19. f3 {[%clk 0:01:49.8]}
19... Bxh4 {[%clk 0:02:06.9]} 20. fxe4 {[%clk 0:01:49.7]} 20... g6 {[%clk
0:01:55.6]} 21. exd5 {[%clk 0:01:48.3]} 21... Bf5 {[%clk 0:01:54.7]} 22. e4
{[%clk 0:01:39.3]} 22... Bg4 {[%clk 0:01:47.9]} 23. dxc6 {[%clk 0:01:29]} 23...
bxc6 {[%clk 0:01:45.5]} 24. Nxf7 {[%clk 0:01:22.8]} 24... Qe6 {[%clk 0:01:40.8]}
25. Nxh6+ {[%clk 0:01:02.3]} 25... Kg7 {[%clk 0:01:38.3]} 26. Nxg4 {[%clk
0:00:52.9]} 26... Qxg4 {[%clk 0:01:39.2]} 27. Rxc6 {[%clk 0:00:42]} 27... Rac8
{[%clk 0:01:34.6]} 28. Rxc8 {[%clk 0:00:38.3]} 28... Rxc8 {[%clk 0:01:35.5]} 29.
h3 {[%clk 0:00:38]} 29... Qd7 {[%clk 0:01:23.5]} 30. e5 {[%clk 0:00:36.9]} 30...
Qe6 {[%clk 0:01:19.2]} 31. d5 {[%clk 0:00:35.7]} 31... Qb6+ {[%clk 0:01:17]} 32.
Kh1 {[%clk 0:00:35.1]} 32... Rf8 {[%clk 0:01:13.6]} 33. Rxf8 {[%clk 0:00:31.9]}
33... Kxf8 {[%clk 0:01:14.5]} 34. Qf3+ {[%clk 0:00:24.2]} 34... Kg7 {[%clk
0:01:12.9]} 35. d6 {[%clk 0:00:20.1]} 35... Qxb2 {[%clk 0:01:11.7]} 36. Qe4
{[%clk 0:00:18.1]} 36... Qc1+ {[%clk 0:01:03.7]} 37. Kh2 {[%clk 0:00:18]} 37...
Qg5 {[%clk 0:01:04.2]} 38. d7 {[%clk 0:00:14.5]} 38... Bg3+ {[%clk 0:01:03.3]}
39. Kg1 {[%clk 0:00:10.9]} 39... Qc1+ {[%clk 0:01:03.1]} 0-1

[Event "*** Titled Tuesday Blitz"]
[Site "Chess.com"]
[Date "2020.11.24"]
[Round "1"]
[White "bylavochka"]
[Black "PlotnikovPavel"]
[Result "1-0"]
[WhiteElo "2149"]
[BlackElo "2488"]
[TimeControl "180+1"]
[EndTime "10:21:37 PST"]
[Termination "bylavochka won by checkmate"]

1. e4 {[%clk 0:02:56.3]} 1... e5 {[%clk 0:02:58.8]} 2. Nf3 {[%clk 0:02:55.2]}
2... Nc6 {[%clk 0:02:58.8]} 3. Bc4 {[%clk 0:02:51.8]} 3... Nf6 {[%clk
0:02:57.1]} 4. Nc3 {[%clk 0:02:46.6]} 4... Nxe4 {[%clk 0:02:56.4]} 5. Nxe4
{[%clk 0:02:39.6]} 5... d5 {[%clk 0:02:55.2]} 6. Bxd5 {[%clk 0:02:33]} 6... Qxd5
{[%clk 0:02:55.1]} 7. Nc3 {[%clk 0:02:33.1]} 7... Qa5 {[%clk 0:02:54.2]} 8. h3
{[%clk 0:02:28.2]} 8... Bf5 {[%clk 0:02:49.9]} 9. O-O {[%clk 0:02:12.6]} 9...
O-O-O {[%clk 0:02:48.4]} 10. Nh4 {[%clk 0:02:05.8]} 10... Be6 {[%clk 0:02:46.3]}
11. d3 {[%clk 0:02:01.7]} 11... Be7 {[%clk 0:02:25.4]} 12. Nf3 {[%clk 0:01:58]}
12... f6 {[%clk 0:02:18.3]} 13. Bd2 {[%clk 0:01:57.8]} 13... Qa6 {[%clk
0:02:12.6]} 14. a3 {[%clk 0:01:53.9]} 14... Nd4 {[%clk 0:02:10]} 15. Nxd4 {[%clk
0:01:50]} 15... exd4 {[%clk 0:02:09.9]} 16. Ne4 {[%clk 0:01:47.8]} 16... h6
{[%clk 0:02:05.8]} 17. Re1 {[%clk 0:01:47.2]} 17... Bd5 {[%clk 0:02:03.2]} 18.
Bb4 {[%clk 0:01:43.8]} 18... Rde8 {[%clk 0:01:26.5]} 19. Bxe7 {[%clk 0:01:28.1]}
19... Rxe7 {[%clk 0:01:27.4]} 20. Qg4+ {[%clk 0:01:06.9]} 20... Kb8 {[%clk
0:01:21.9]} 21. Nd2 {[%clk 0:01:04.2]} 21... Rhe8 {[%clk 0:01:17.8]} 22. Rxe7
{[%clk 0:00:53.5]} 22... Rxe7 {[%clk 0:01:18.7]} 23. Qxd4 {[%clk 0:00:53.1]}
23... Qc6 {[%clk 0:01:09.1]} 24. c4 {[%clk 0:00:48.8]} 24... Re2 {[%clk
0:00:37.4]} 25. cxd5 {[%clk 0:00:45.1]} 25... Qe8 {[%clk 0:00:31.9]} 26. Ne4
{[%clk 0:00:41.6]} 26... f5 {[%clk 0:00:31.8]} 27. Nc5 {[%clk 0:00:41.7]} 27...
b6 {[%clk 0:00:29.4]} 28. Ne6 {[%clk 0:00:40.8]} 28... Qd7 {[%clk 0:00:27.9]}
29. Qc4 {[%clk 0:00:37]} 29... Re5 {[%clk 0:00:21.2]} 30. Rc1 {[%clk 0:00:34.4]}
30... Rxd5 {[%clk 0:00:20.2]} 31. Nxc7 {[%clk 0:00:33]} 31... Rc5 {[%clk
0:00:20.6]} 32. Na6+ {[%clk 0:00:32.1]} 32... Kb7 {[%clk 0:00:21.2]} 33. Nxc5+
{[%clk 0:00:32.8]} 33... bxc5 {[%clk 0:00:21.7]} 34. Qxc5 {[%clk 0:00:32.9]}
34... Qxd3 {[%clk 0:00:22.6]} 35. Qc6+ {[%clk 0:00:32.9]} 35... Kb8 {[%clk
0:00:23.4]} 36. Qc8# {[%clk 0:00:33.3]} 1-0

[Event "*** Titled Tuesday Blitz"]
[Site "Chess.com"]
[Date "2020.11.24"]
[Round "1"]
[White "albi1999"]
[Black "Zajdanek"]
[Result "1-0"]
[WhiteElo "2609"]
[BlackElo "2315"]
[TimeControl "180+1"]
[EndTime "10:21:39 PST"]
[Termination "albi1999 won by resignation"]

1. d4 {[%clk 0:02:57.3]} 1... f5 {[%clk 0:02:56.5]} 2. g3 {[%clk 0:02:55.7]}
2... Nf6 {[%clk 0:02:56.4]} 3. Bg2 {[%clk 0:02:54.9]} 3... g6 {[%clk 0:02:57]}
4. Nf3 {[%clk 0:02:53.2]} 4... Bg7 {[%clk 0:02:57.7]} 5. O-O {[%clk 0:02:52.8]}
5... O-O {[%clk 0:02:58.4]} 6. b3 {[%clk 0:02:52.5]} 6... d6 {[%clk 0:02:57.8]}
7. Bb2 {[%clk 0:02:52.3]} 7... a5 {[%clk 0:02:58.5]} 8. c4 {[%clk 0:02:51.5]}
8... a4 {[%clk 0:02:58.3]} 9. Nbd2 {[%clk 0:02:51.8]} 9... a3 {[%clk 0:02:45.8]}
10. Bc3 {[%clk 0:02:51.5]} 10... Nc6 {[%clk 0:02:45.5]} 11. d5 {[%clk
0:02:50.3]} 11... Nb8 {[%clk 0:02:43.9]} 12. Qc2 {[%clk 0:02:46.5]} 12... h6
{[%clk 0:02:44.1]} 13. e4 {[%clk 0:02:45]} 13... fxe4 {[%clk 0:02:44.2]} 14.
Nxe4 {[%clk 0:02:43.8]} 14... Nxe4 {[%clk 0:02:44.7]} 15. Bxg7 {[%clk
0:02:41.6]} 15... Kxg7 {[%clk 0:02:44.2]} 16. Qxe4 {[%clk 0:02:41]} 16... Bf5
{[%clk 0:02:44.6]} 17. Qd4+ {[%clk 0:02:40.4]} 17... Kh7 {[%clk 0:02:43.4]} 18.
Rae1 {[%clk 0:02:37.2]} 18... Rf7 {[%clk 0:02:42.8]} 19. Nh4 {[%clk 0:02:32.6]}
19... Qd7 {[%clk 0:02:36.4]} 20. Nxf5 {[%clk 0:02:29.2]} 20... gxf5 {[%clk
0:02:37.3]} 21. Re6 {[%clk 0:02:26.5]} 21... Qd8 {[%clk 0:02:23.6]} 22. Qe3
{[%clk 0:02:11]} 22... Qf8 {[%clk 0:02:20.8]} 23. Re1 {[%clk 0:02:10.9]} 23...
Nd7 {[%clk 0:02:12.8]} 24. Rxe7 {[%clk 0:02:09.9]} 24... Ne5 {[%clk 0:02:08.5]}
25. Rxf7+ {[%clk 0:02:07.5]} 25... Qxf7 {[%clk 0:02:07.3]} 26. h3 {[%clk
0:02:01.2]} 26... b6 {[%clk 0:01:56.4]} 27. f4 {[%clk 0:01:56.8]} 27... Ng6
{[%clk 0:01:56.3]} 28. h4 {[%clk 0:01:52.6]} 28... Rf8 {[%clk 0:01:36.8]} 29.
Kf2 {[%clk 0:01:51]} 29... Qf6 {[%clk 0:01:34.7]} 30. Re2 {[%clk 0:01:48.4]}
30... Rf7 {[%clk 0:01:34.9]} 31. h5 {[%clk 0:01:46.3]} 31... Nf8 {[%clk
0:01:34.8]} 32. Qe8 {[%clk 0:01:43.2]} 32... Kg7 {[%clk 0:01:29.8]} 33. Bf3
{[%clk 0:01:33.9]} 33... Nd7 {[%clk 0:01:26.2]} 34. Qe6 {[%clk 0:01:29.8]} 34...
Qd4+ {[%clk 0:01:16.5]} 35. Kg2 {[%clk 0:01:26.3]} 35... Qf6 {[%clk 0:01:03.1]}
36. Qxf6+ {[%clk 0:01:22.7]} 36... Nxf6 {[%clk 0:01:03]} 37. Re6 {[%clk
0:01:19.2]} 37... Rd7 {[%clk 0:00:51.2]} 38. Kf2 {[%clk 0:01:18.7]} 38... Kf7
{[%clk 0:00:51.5]} 39. Ke3 {[%clk 0:01:18.6]} 39... Rd8 {[%clk 0:00:51.3]} 40.
Kf2 {[%clk 0:01:13.4]} 40... Rg8 {[%clk 0:00:51.2]} 41. Re3 {[%clk 0:01:12.6]}
41... Ra8 {[%clk 0:00:45.5]} 42. Ke2 {[%clk 0:01:11.9]} 42... Nd7 {[%clk
0:00:43]} 43. Kd2 {[%clk 0:01:10.2]} 43... Rg8 {[%clk 0:00:42.7]} 44. Bd1 {[%clk
0:01:09.9]} 44... Nc5 {[%clk 0:00:42.2]} 45. Bc2 {[%clk 0:01:08.5]} 45... Kf6
{[%clk 0:00:40]} 46. b4 {[%clk 0:01:08.6]} 46... Na6 {[%clk 0:00:35.7]} 47. Kc3
{[%clk 0:01:08.4]} 1-0